fUST/lending_fUST_20240830
["ID","MTS","AMOUNT","RATE_DAILY","PERIOD"]
[336587720,1724959841325,-500.0,0.00019178,2]
[336587721,1724959841334,-501.49547006,0.00019178,2]
[336587722,1724959841344,-500.0,0.00019178,2]
[336587723,1724959841353,-836.77,0.00019178,2]
[336587724,1724959841363,-500.0,0.00019178,2]
[336587725,1724959841375,-500.0,0.00019178,2]
[336587726,1724959841384,-500.0,0.00019178,2]
[336587727,1724959841394,-500.0,0.00019178,2]
[336587728,1724959841403,-502.32337793,0.00019178,2]
[336587729,1724959841412,-500.0,0.00019178,2]
[336587730,1724959841421,-584.54,0.00019178,2]
[336587731,1724959841432,-500.7,0.00019178,2]
[336587732,1724959841442,-500.0,0.00019178,2]
[336587733,1724959841451,-500.0,0.00019178,2]
[336587734,1724959841460,-500.0,0.00019178,2]
[336587735,1724959841470,-500.0,0.00019178,2]
[336587736,1724959841479,-500.0,0.00019178,2]
[336587737,1724959841488,-500.0,0.00019178,2]
[336587738,1724959841498,-500.0,0.00019178,2]
[336587739,1724959841508,-500.0,0.00019178,2]
[336587740,1724959841518,-500.0,0.00019178,2]
[336587741,1724959841527,-500.0,0.00019178,2]
[336587742,1724959841537,-500.0,0.00019178,2]
[336587743,1724959841546,-500.0,0.00019178,2]
[336587744,1724959841556,-501.58444711,0.00019178,2]
[336587745,1724959841565,-500.0,0.00019178,2]
[336587746,1724959841574,-500.0,0.00019178,2]
[336587747,1724959841585,-500.0,0.00019178,2]
[336587748,1724959841594,-500.0,0.00019178,2]
[336587749,1724959841603,-500.0,0.00019178,2]
[336587750,1724959841613,-500.0,0.00019178,2]
[336587751,1724959841623,-500.0,0.00019178,2]
[336587752,1724959841632,-365.70359892,0.00019178,2]
[336587753,1724959841642,-500.0,0.00019178,2]
[336587754,1724959841651,-1704.24,0.00019178,2]
[336587755,1724959841660,-501.22880114,0.00019178,2]
[336587756,1724959841670,-500.0,0.00019178,2]
[336587757,1724959841679,-500.0,0.00019178,2]
[336587758,1724959841689,-500.0,0.00019178,2]
[336587759,1724959841698,-500.0,0.00019178,2]
[336587760,1724959841708,-500.0,0.00019178,2]
[336587761,1724959841717,-500.0,0.00019178,2]
[336587762,1724959841727,-500.0,0.00019178,2]
[336587763,1724959841736,-500.0,0.00019178,2]
[336587764,1724959841746,-500.0,0.00019178,2]
[336587765,1724959841756,-500.0,0.00019178,2]
[336587766,1724959841767,-500.0,0.00019178,2]
[336587767,1724959841776,-501.41878933,0.00019178,2]
[336587768,1724959841786,-500.0,0.00019178,2]
[336587769,1724959841796,-500.0,0.00019178,2]
[336587770,1724959841805,-215.41250564,0.00019178,2]
[336587771,1724959841814,-500.0,0.00019178,2]
[336587772,1724959841824,-500.0,0.00019178,2]
[336587773,1724959841833,-506.13455368,0.00019178,2]
[336587774,1724959841843,-500.0,0.00019178,2]
[336587775,1724959841852,-500.0,0.00019178,2]
[336587776,1724959841862,-500.0,0.00019178,2]
[336587777,1724959841871,-500.0,0.00019178,2]
[336587778,1724959841881,-1674.51,0.00019178,2]
[336587779,1724959841891,-500.0,0.00019178,2]
[336587780,1724959841900,-500.0,0.00019178,2]
[336587781,1724959841910,-502.70124044,0.00019178,2]
[336587782,1724959841920,-500.0,0.00019178,2]
[336587783,1724959841929,-500.0,0.00019178,2]
[336587784,1724959841939,-500.0,0.00019178,2]
[336587785,1724959841949,-500.0,0.00019178,2]
[336587786,1724959841959,-500.0,0.00019178,2]
[336587787,1724959841970,-500.0,0.00019178,2]
[336587788,1724959841979,-500.0,0.00019178,2]
[336587789,1724959841989,-500.0,0.00019178,2]
[336587790,1724959841998,-500.0,0.00019178,2]
[336587791,1724959842008,-507.34958046,0.00019178,2]
[336587792,1724959842021,-500.0,0.00019178,2]
[336587793,1724959842035,-500.0,0.00019178,2]
[336587794,1724959842044,-500.0,0.00019178,2]
[336587795,1724959842054,-500.0,0.00019178,2]
[336587796,1724959842063,-500.0,0.00019178,2]
[336587797,1724959842074,-500.0,0.00019178,2]
[336587798,1724959842084,-500.0,0.00019178,2]
[336587799,1724959842094,-507.48470901,0.00019178,2]
[336587800,1724959842103,-500.0,0.00019178,2]
[336587801,1724959842113,-503.24224318,0.00019178,2]
[336587802,1724959842123,-500.0,0.00019178,2]
[336587803,1724959842132,-500.0,0.00019178,2]
[336587804,1724959842141,-500.0,0.00019178,2]
[336587805,1724959842150,-500.0,0.00019178,2]
[336587806,1724959842159,-503.11875468,0.00019178,2]
[336587807,1724959842169,-500.0,0.00019178,2]
[336587808,1724959842182,-2011.91,0.00019178,2]
[336587809,1724959842194,-500.0,0.00019178,2]
[336587810,1724959842203,-500.0,0.00019178,2]
[336587811,1724959842213,-500.0,0.00019178,2]
[336587812,1724959842223,-500.0,0.00019178,2]
[336587813,1724959842232,-500.0,0.00019178,2]
[336587814,1724959842241,-645.75569571,0.00019178,2]
[336587815,1724959842251,-1578.86,0.00019178,2]
[336587816,1724959842262,-500.0,0.00019178,2]
[336587817,1724959842272,-500.0,0.00019178,2]
[336587818,1724959842281,-500.0,0.00019178,2]
[336587819,1724959842291,-502.12198801,0.00019178,2]
[336587820,1724959842300,-500.0,0.00019178,2]
[336587821,1724959842309,-500.0,0.00019178,2]
[336587822,1724959842318,-500.0,0.00019178,2]
[336587823,1724959842327,-500.0,0.00019178,2]
[336587824,1724959842336,-500.0,0.00019178,2]
[336587825,1724959842346,-500.0,0.00019178,2]
[336587826,1724959842355,-500.0,0.00019178,2]
[336587827,1724959842364,-500.0,0.00019178,2]
[336587828,1724959842373,-500.0,0.00019178,2]
[336587829,1724959842382,-500.0,0.00019178,2]
[336587830,1724959842392,-500.0,0.00019178,2]
[336587831,1724959842401,-500.0,0.00019178,2]
[336587832,1724959842410,-618.21217825,0.00019178,2]
[336587833,1724959842419,-500.0,0.00019178,2]
[336587834,1724959842429,-500.0,0.00019178,2]
[336587835,1724959842439,-500.0,0.00019178,2]
[336587836,1724959842448,-1943.11,0.00019178,2]
[336587837,1724959842457,-501.13742906,0.00019178,2]
[336587838,1724959842466,-279.81274942,0.00019178,2]
[336587839,1724959842476,-500.85865272,0.00019178,2]
[336587840,1724959842485,-500.0,0.00019178,2]
[336587841,1724959842496,-500.0,0.00019178,2]
[336587842,1724959842505,-500.0,0.00019178,2]
[336587843,1724959842519,-500.0,0.00019178,2]
[336587844,1724959842530,-4403.86,0.00019178,2]
[336587845,1724959842539,-500.0,0.00019178,2]
[336587846,1724959842553,-502.19347329,0.00019178,2]
[336587847,1724959842562,-500.66822901,0.00019178,2]
[336587848,1724959842571,-501.05672449,0.00019178,2]
[336587849,1724959842580,-500.0,0.00019178,2]
[336587850,1724959842590,-500.0,0.00019178,2]
[336587851,1724959842600,-3148.43,0.00019178,2]
[336587852,1724959842609,-500.0,0.00019178,2]
[336587853,1724959842619,-500.0,0.00019178,2]
[336587854,1724959842629,-500.0,0.00019178,2]
[336587855,1724959842639,-500.0,0.00019178,2]
[336587856,1724959842649,-500.0,0.00019178,2]
[336587857,1724959842659,-500.0,0.00019178,2]
[336587858,1724959842669,-1722.01,0.00019178,2]
[336587859,1724959842679,-524.07508133,0.00019178,2]
[336587860,1724959842688,-500.0,0.00019178,2]
[336587861,1724959842698,-2200.88,0.00019178,2]
[336587862,1724959842707,-500.0,0.00019178,2]
[336587863,1724959842717,-10005.23,0.00019178,2]
[336587864,1724959842726,-500.0,0.00019178,2]
[336587865,1724959842736,-1758.17,0.00019178,2]
[336587866,1724959842745,-500.0,0.00019178,2]
[336587867,1724959842754,-500.0,0.00019178,2]
[336587868,1724959842767,-500.0,0.00019178,2]
[336587869,1724959842777,-500.0,0.00019178,2]
[336587870,1724959842787,-500.0,0.00019178,2]
[336587871,1724959842798,-4039.87,0.00019178,2]
[336587872,1724959842807,-500.0,0.00019178,2]
[336587873,1724959842816,-2874.84,0.00019178,2]
[336587874,1724959842826,-500.18813782,0.00019178,2]
[336587876,1724959842835,-500.0,0.00019178,2]
[336587877,1724959842844,-501.38354752,0.00019178,2]
[336587878,1724959842854,-500.0,0.00019178,2]
[336587879,1724959842863,-6955.28,0.00019178,2]
[336587880,1724959842872,-8645.87,0.00019178,2]
[336587881,1724959842882,-170.14203574,0.00019178,2]
[336587882,1724959842891,-500.0,0.00019178,2]
[336587883,1724959842901,-500.0,0.00019178,2]
[336587884,1724959842910,-7860.36,0.00019178,2]
[336587885,1724959842919,-500.0,0.00019178,2]
[336587888,1724959842928,-500.0,0.00019178,2]
[336587890,1724959842938,-500.0,0.00019178,2]
[336587891,1724959842948,-500.0,0.00019178,2]
[336587893,1724959842958,-500.0,0.00019178,2]
[336587895,1724959842968,-500.0,0.00019178,2]
[336587896,1724959842979,-555.02577679,0.00019178,2]
[336587897,1724959842989,-500.0,0.00019178,2]
[336587898,1724959842999,-3052.09,0.00019178,2]
[336587899,1724959843008,-500.0,0.00019178,2]
[336587900,1724959843018,-526.41,0.00019178,2]
[336587901,1724959843028,-500.0,0.00019178,2]
[336587902,1724959843037,-500.0,0.00019178,2]
[336587903,1724959843046,-1992.41,0.00019178,2]
[336587904,1724959843056,-500.0,0.00019178,2]
[336587905,1724959843065,-297.97003141,0.00019178,2]
[336587906,1724959843173,-500.0,0.00019178,2]
[336587907,1724959843184,-501.34026692,0.00019178,2]
[336587908,1724959843197,-500.0,0.00019178,2]
[336587909,1724959843206,-500.40715464,0.00019178,2]
[336587910,1724959843216,-500.0,0.00019178,2]
[336587911,1724959843226,-500.0,0.00019178,2]
[336587912,1724959843235,-2047.97,0.00019178,2]
[336587913,1724959843244,-500.0,0.00019178,2]
[336587914,1724959843253,-1568.45,0.00019178,2]
[336587915,1724959843264,-500.0,0.00019178,2]
[336587916,1724959843274,-500.0,0.00019178,2]
[336587917,1724959843283,-1562.05,0.00019178,2]
[336587918,1724959843292,-503.87308445,0.00019178,2]
[336587919,1724959843301,-500.0,0.00019178,2]
[336587920,1724959843311,-500.0,0.00019178,2]
[336587921,1724959843323,-500.0,0.00019178,2]
[336587922,1724959843335,-500.0,0.00019178,2]
[336587923,1724959843346,-500.0,0.00019178,2]
[336587924,1724959843358,-500.0,0.00019178,2]
[336587925,1724959843367,-500.0,0.00019178,2]
[336587926,1724959843376,-500.0,0.00019178,2]
[336587927,1724959843386,-500.0,0.00019178,2]
[336587928,1724959843395,-500.0,0.00019178,2]
[336587929,1724959843405,-500.0,0.00019178,2]
[336587930,1724959843414,-500.0,0.00019178,2]
[336587931,1724959843423,-500.0,0.00019178,2]
[336587932,1724959843433,-500.0,0.00019178,2]
[336587933,1724959843442,-2122.12,0.00019178,2]
[336587934,1724959843451,-500.0,0.00019178,2]
[336587935,1724959843463,-500.0,0.00019178,2]
[336587936,1724959843473,-500.0,0.00019178,2]
[336587937,1724959843483,-864.74,0.00019178,2]
[336587938,1724959843492,-500.0,0.00019178,2]
[336587939,1724959843501,-727.36,0.00019178,2]
[336587940,1724959843511,-500.0,0.00019178,2]
[336587941,1724959843521,-500.0,0.00019178,2]
[336587942,1724959843531,-3582.04,0.00019178,2]
[336587943,1724959843541,-500.0,0.00019178,2]
[336587944,1724959843551,-500.0,0.00019178,2]
[336587945,1724959843560,-500.0,0.00019178,2]
[336587946,1724959843570,-500.0,0.00019178,2]
[336587948,1724959843580,-1462.75,0.00019178,2]
[336587950,1724959843592,-500.0,0.00019178,2]
[336587951,1724959843602,-457.93345033,0.00019178,2]
[336587952,1724959843612,-501.99014026,0.00019178,2]
[336587953,1724959843623,-7676.07,0.00019178,2]
[336587954,1724959843633,-500.0,0.00019178,2]
[336587955,1724959843646,-500.0,0.00019178,2]
[336587956,1724959843656,-500.52118151,0.00019178,2]
[336587957,1724959843666,-583.87373975,0.00019178,2]
[336587958,1724959843675,-500.0,0.00019178,2]
[336587959,1724959843685,-535.44,0.00019178,2]
[336587960,1724959843695,-500.0,0.00019178,2]
[336587961,1724959843704,-636.36,0.00019178,2]
[336587962,1724959843714,-500.0,0.00019178,2]
[336587963,1724959843723,-500.0,0.00019178,2]
[336587965,1724959843732,-5516.09957903,0.00019178,2]
[336587967,1724959843741,-500.0,0.00019178,2]
[336587969,1724959843751,-1215.51,0.00019178,2]
[336587971,1724959843760,-500.44153153,0.00019178,2]
[336587973,1724959843772,-500.0,0.00019178,2]
[336587974,1724959843782,-500.0,0.00019178,2]
[336587975,1724959843791,-500.0,0.00019178,2]
[336587976,1724959843801,-330.90053697,0.00019178,2]
[336587977,1724959843810,-500.0,0.00019178,2]
[336587978,1724959843819,-1345.15,0.00019178,2]
[336587979,1724959843829,-2499.8,0.00019178,2]
[336587980,1724959843840,-1920.4,0.00019178,2]
[336587981,1724959843849,-500.0,0.00019178,2]
[336587982,1724959843859,-196.28814112,0.00019178,2]
[336587983,1724959843869,-500.0,0.00019178,2]
[336587984,1724959843878,-2341.41,0.00019178,2]
[336587985,1724959843887,-500.0,0.00019178,2]
[336587986,1724959843898,-2245.67,0.00019178,2]
[336587987,1724959843908,-500.23819614,0.00019178,2]
[336587988,1724959843917,-520.96835983,0.00019178,2]
[336587989,1724959843927,-3653.88,0.00019178,2]
[336587990,1724959843936,-500.0,0.00019178,2]
[336587991,1724959843946,-558.83372195,0.00019178,2]
[336587992,1724959843956,-500.0,0.00019178,2]
[336587993,1724959843966,-500.0,0.00019178,2]
[336587994,1724959843976,-636.14328071,0.00019178,2]
[336587995,1724959843986,-500.0,0.00019178,2]
[336587996,1724959843996,-500.0,0.00019178,2]
[336587997,1724959844007,-508.72953757,0.00019178,2]
[336587998,1724959844019,-500.0,0.00019178,2]
[336587999,1724959844029,-318.94533941,0.00019178,2]
[336588000,1724959844040,-500.0,0.00019178,2]
[336588001,1724959844050,-1513.12,0.00019178,2]
[336588002,1724959844060,-500.0,0.00019178,2]
[336588003,1724959844071,-500.0,0.00019178,2]
[336588004,1724959844081,-501.69502549,0.00019178,2]
[336588005,1724959844091,-500.0,0.00019178,2]
[336588006,1724959844103,-500.0,0.00019178,2]
[336588007,1724959844119,-502.06421671,0.00019178,2]
[336588008,1724959844129,-500.0,0.00019178,2]
[336588009,1724959844140,-508.68282469,0.00019178,2]
[336588010,1724959844151,-7125.4,0.00019178,2]
[336588011,1724959844162,-687.9,0.00019178,2]
[336588012,1724959844173,-500.0,0.00019178,2]
[336588013,1724959844187,-500.0,0.00019178,2]
[336588014,1724959844199,-2432.83,0.00019178,2]
[336588015,1724959844210,-500.0,0.00019178,2]
[336588016,1724959844227,-500.0,0.00019178,2]
[336588017,1724959844237,-579.28789027,0.00019178,2]
[336588018,1724959844248,-1735.37,0.00019178,2]
[336588019,1724959844259,-500.0,0.00019178,2]
[336588020,1724959844277,-500.0,0.00019178,2]
[336588021,1724959844287,-500.0,0.00019178,2]
[336588022,1724959844298,-500.0,0.00019178,2]
[336588023,1724959844313,-500.0,0.00019178,2]
[336588024,1724959844330,-500.0,0.00019178,2]
[336588025,1724959844340,-1860.24,0.00019178,2]
[336588026,1724959844351,-500.0,0.00019178,2]
[336588027,1724959844362,-1823.65,0.00019178,2]
[336588028,1724959844373,-500.0,0.00019178,2]
[336588029,1724959844383,-500.0,0.00019178,2]
[336588030,1724959844393,-500.0,0.00019178,2]
[336588031,1724959844404,-500.0,0.00019178,2]
[336588032,1724959844414,-500.0,0.00019178,2]
[336588033,1724959844424,-500.0,0.00019178,2]
[336588034,1724959844438,-500.0,0.00019178,2]
[336588035,1724959844450,-500.0,0.00019178,2]
[336588036,1724959844461,-500.0,0.00019178,2]
[336588037,1724959844471,-500.0,0.00019178,2]
[336588038,1724959844482,-1687.53,0.00019178,2]
[336588039,1724959844493,-501.4546758,0.00019178,2]
[336588040,1724959844504,-640.19,0.00019178,2]
[336588041,1724959844515,-500.0,0.00019178,2]
[336588042,1724959844526,-2819.92,0.00019178,2]
[336588043,1724959844542,-500.0,0.00019178,2]
[336588044,1724959844553,-692.81,0.00019178,2]
[336588045,1724959844564,-7069.08,0.00019178,2]
[336588046,1724959844575,-500.0,0.00019178,2]
[336588047,1724959844586,-7852.79,0.00019178,2]
[336588048,1724959844597,-500.0,0.00019178,2]
[336588049,1724959844608,-1778.75,0.00019178,2]
[336588050,1724959844620,-607.98009222,0.00019178,2]
[336588051,1724959844632,-590.65957572,0.00019178,2]
[336588052,1724959844651,-500.0,0.00019178,2]
[336588053,1724959844664,-500.0,0.00019178,2]
[336588054,1724959844674,-500.0,0.00019178,2]
[336588055,1724959844686,-500.0,0.00019178,2]
[336588056,1724959844697,-500.0,0.00019178,2]
[336588057,1724959844707,-5307.89,0.00019178,2]
[336588058,1724959844718,-522.91594586,0.00019178,2]
[336588059,1724959844729,-500.0,0.00019178,2]
[336588060,1724959844741,-500.0,0.00019178,2]
[336588061,1724959844752,-500.0,0.00019178,2]
[336588062,1724959844764,-500.0,0.00019178,2]
[336588063,1724959844787,-500.0,0.00019178,2]
[336588064,1724959844798,-563.48,0.00019178,2]
[336588065,1724959844812,-563.92,0.00019178,2]
[336588066,1724959844823,-500.0,0.00019178,2]
[336588067,1724959844834,-500.0,0.00019178,2]
[336588068,1724959844845,-500.56889513,0.00019178,2]
[336588069,1724959844857,-4411.53,0.00019178,2]
[336588070,1724959844869,-500.0,0.00019178,2]
[336588071,1724959844880,-500.0,0.00019178,2]
[336588072,1724959844892,-295.8331768,0.00019178,2]
[336588073,1724959844904,-500.0,0.00019178,2]
[336588074,1724959844915,-810.09,0.00019178,2]
[336588075,1724959844927,-500.0,0.00019178,2]
[336588076,1724959844939,-500.0,0.00019178,2]
[336588077,1724959844951,-500.0,0.00019178,2]
[336588078,1724959844963,-500.0,0.00019178,2]
[336588079,1724959844974,-501.8001688,0.00019178,2]
[336588080,1724959844986,-6162.06,0.00019178,2]
[336588081,1724959844997,-500.0,0.00019178,2]
[336588082,1724959845010,-6162.06,0.00019178,2]
[336588083,1724959845028,-167.291741,0.00019178,2]
[336588084,1724959845040,-207.8243323,0.000192,2]
[336588085,1724959845053,-409.4593805,0.000192,2]
[336588086,1724959845068,-207.8243323,0.000192,2]
[336588087,1724959845080,-207.8243323,0.000192,2]
[336588088,1724959845092,-207.8243323,0.000192,2]
[336588089,1724959845104,-11453.72690287,0.00019342,2]
[336588090,1724959845116,-387.60637,0.00019384,2]
[336588091,1724959845128,-403.168223,0.00019384,2]
[336588092,1724959845140,-500.0,0.00019399,2]
[336588093,1724959845151,-300.0,0.000194,8]
[336588094,1724959845162,-500.0,0.00019441,2]
[336588095,1724959845174,-2194.01861557,0.00019451,2]
[336588096,1724959845188,-582.4569121,0.00019451,2]
[336588097,1724959845200,-151.0,0.00019452,2]
[336588098,1724959845213,-500.0,0.00019452,2]
[336588099,1724959845229,-151.0,0.00019452,2]
[336588100,1724959845241,-506.28641808,0.00019452,2]
[336588101,1724959845252,-500.0,0.00019452,2]
[336588102,1724959845263,-500.0,0.00019452,2]
[336588103,1724959845279,-500.0,0.00019452,2]
[336588104,1724959845291,-500.0,0.00019452,2]
[336588105,1724959845303,-500.0,0.00019452,2]
[336588106,1724959845315,-500.0,0.00019452,2]
[336588107,1724959845326,-500.76343885,0.00019452,2]
[336588108,1724959845338,-500.0,0.00019452,2]
[336588109,1724959845349,-500.0,0.00019452,2]
[336588110,1724959845360,-301.33890393,0.00019452,2]
[336588111,1724959845376,-500.0,0.00019452,2]
[336588112,1724959845387,-500.0,0.00019452,2]
[336588113,1724959845399,-500.0,0.00019452,2]
[336588114,1724959845411,-500.0,0.00019452,2]
[336588115,1724959845423,-500.0,0.00019452,2]
[336588116,1724959845434,-500.0,0.00019452,2]
[336588117,1724959845444,-500.0,0.00019452,2]
[336588118,1724959845455,-520.73441391,0.00019452,2]
[336588119,1724959845465,-500.0,0.00019452,2]
[336588120,1724959845478,-500.0,0.00019452,2]
[336588121,1724959845489,-234.25299896,0.00019452,2]
[336588122,1724959845501,-151.0,0.00019452,2]
[336588123,1724959845511,-322.00642069,0.00019452,2]
[336588124,1724959845525,-500.0,0.00019452,2]
[336588125,1724959845535,-151.0,0.00019452,2]
[336588126,1724959845547,-500.0,0.00019452,2]
[336588127,1724959845557,-200.0,0.00019452,2]
[336588128,1724959845568,-500.0,0.00019452,2]
[336588129,1724959845581,-500.0,0.00019452,2]
[336588130,1724959845591,-500.0,0.00019452,2]
[336588131,1724959845602,-500.0,0.00019452,2]
[336588132,1724959845614,-500.0,0.00019452,2]
[336588133,1724959845624,-500.0,0.00019452,2]
[336588134,1724959845635,-500.0,0.00019452,2]
[336588135,1724959845646,-500.0,0.00019452,2]
[336588136,1724959845772,-500.0,0.00019452,2]
[336588137,1724959845783,-500.0,0.00019452,2]
[336588138,1724959845796,-500.0,0.00019452,2]
[336588139,1724959845807,-500.0,0.00019452,2]
[336588140,1724959845818,-500.0,0.00019452,2]
[336588141,1724959845829,-530.16318327,0.00019452,2]
[336588142,1724959845840,-500.0,0.00019452,2]
[336588143,1724959845850,-503.60226031,0.00019452,2]
[336588144,1724959845861,-500.0,0.00019452,2]
[336588145,1724959845873,-500.0,0.00019452,2]
[336588146,1724959845884,-500.0,0.00019452,2]
[336588147,1724959845896,-500.0,0.00019452,2]
[336588148,1724959845906,-500.0,0.00019452,2]
[336588149,1724959845917,-972.15,0.00019452,2]
[336588150,1724959845928,-500.0,0.00019452,2]
[336588151,1724959845939,-500.0,0.00019452,2]
[336588152,1724959845950,-500.0,0.00019452,2]
[336588153,1724959845962,-500.0,0.00019452,2]
[336588154,1724959845972,-500.0,0.00019452,2]
[336588156,1724959845983,-500.0,0.00019452,2]
[336588158,1724959845995,-500.0,0.00019452,2]
[336588159,1724959846007,-500.0,0.00019452,2]
[336588160,1724959846019,-510.73480858,0.00019452,2]
[336588161,1724959846031,-568.31,0.00019452,2]
[336588162,1724959846042,-500.0,0.00019452,2]
[336588163,1724959846052,-500.0,0.00019452,2]
[336588164,1724959846063,-500.0,0.00019452,2]
[336588165,1724959846074,-500.0,0.00019452,2]
[336588166,1724959846085,-500.0,0.00019452,2]
[336588167,1724959846098,-500.0,0.00019452,2]
[336588168,1724959846108,-500.0,0.00019452,2]
[336588169,1724959846119,-507.38898345,0.00019452,2]
[336588170,1724959846130,-500.0,0.00019452,2]
[336588171,1724959846141,-500.0,0.00019452,2]
[336588172,1724959846151,-500.0,0.00019452,2]
[336588173,1724959846162,-500.0,0.00019452,2]
[336588174,1724959846172,-500.0,0.00019452,2]
[336588175,1724959846187,-886.8,0.00019452,2]
[336588176,1724959846200,-500.0,0.00019452,2]
[336588177,1724959846211,-500.0,0.00019452,2]
[336588178,1724959846223,-591.56,0.00019452,2]
[336588179,1724959846235,-500.0,0.00019452,2]
[336588180,1724959846246,-500.0,0.00019452,2]
[336588181,1724959846256,-500.0,0.00019452,2]
[336588182,1724959846269,-500.0,0.00019452,2]
[336588183,1724959846280,-500.0,0.00019452,2]
[336588184,1724959846291,-500.0,0.00019452,2]
[336588185,1724959846303,-500.0,0.00019452,2]
[336588186,1724959846315,-500.0,0.00019452,2]
[336588187,1724959846325,-572.09,0.00019452,2]
[336588188,1724959846335,-507.64,0.00019452,2]
[336588189,1724959846345,-500.0,0.00019452,2]
[336588190,1724959846357,-500.0,0.00019452,2]
[336588191,1724959846370,-986.6,0.00019452,2]
[336588192,1724959846381,-500.0,0.00019452,2]
[336588193,1724959846392,-503.47526931,0.00019452,2]
[336588194,1724959846406,-500.0,0.00019452,2]
[336588195,1724959846416,-500.0,0.00019452,2]
[336588196,1724959846427,-500.0,0.00019452,2]
[336588197,1724959846437,-500.0,0.00019452,2]
[336588198,1724959846447,-500.0,0.00019452,2]
[336588199,1724959846457,-668.17,0.00019452,2]
[336588200,1724959846468,-500.0,0.00019452,2]
[336588201,1724959846478,-1355.56,0.00019452,2]
[336588202,1724959846488,-500.0,0.00019452,2]
[336588203,1724959846498,-776.41,0.00019452,2]
[336588204,1724959846508,-500.0,0.00019452,2]
[336588205,1724959846523,-500.0,0.00019452,2]
[336588206,1724959846534,-431.64865532,0.00019452,2]
[336588207,1724959846544,-829.52,0.00019452,2]
[336588208,1724959846555,-579.36,0.00019452,2]
[336588209,1724959846565,-500.0,0.00019452,2]
[336588210,1724959846575,-500.0,0.00019452,2]
[336588211,1724959846584,-605.81,0.00019452,2]
[336588212,1724959846594,-500.0,0.00019452,2]
[336588213,1724959846604,-500.0,0.00019452,2]
[336588214,1724959846614,-500.0,0.00019452,2]
[336588215,1724959846624,-502.28072966,0.00019452,2]
[336588216,1724959846634,-505.78034997,0.00019452,2]
[336588217,1724959846644,-500.0,0.00019452,2]
[336588218,1724959846654,-500.0,0.00019452,2]
[336588219,1724959846664,-836.77,0.00019452,2]
[336588220,1724959846675,-500.0,0.00019452,2]
[336588221,1724959846685,-500.0,0.00019452,2]
[336588222,1724959846695,-500.0,0.00019452,2]
[336588223,1724959846705,-500.0,0.00019452,2]
[336588224,1724959846715,-584.54,0.00019452,2]
[336588225,1724959846726,-500.7,0.00019452,2]
[336588226,1724959846736,-500.0,0.00019452,2]
[336588227,1724959846746,-500.0,0.00019452,2]
[336588228,1724959846756,-500.0,0.00019452,2]
[336588229,1724959846767,-500.0,0.00019452,2]
[336588230,1724959846776,-500.0,0.00019452,2]
[336588231,1724959846786,-500.0,0.00019452,2]
[336588232,1724959846796,-500.0,0.00019452,2]
[336588233,1724959846806,-500.0,0.00019452,2]
[336588235,1724959846816,-502.61032171,0.00019452,2]